lending/lending_fUSD_20240809
["ID","MTS","AMOUNT","RATE_DAILY","PERIOD"]
[334536962,1723175458587,-285.547649,0.00024284,5]
[334536964,1723175458597,-285.547649,0.00024284,5]
[334536966,1723175458607,-150.0,0.00024285,2]
[334536968,1723175458616,-154.704359,0.00024285,5]
[334536970,1723175458626,-150.215105,0.00024285,5]
[334536972,1723175458636,-419.623131,0.00024285,5]
[334536974,1723175458646,-419.623131,0.00024285,5]
[334536976,1723175458655,-419.623131,0.00024285,5]
[334536978,1723175458666,-419.623131,0.00024285,5]
[334536980,1723175458675,-285.547649,0.00024285,5]
[334536981,1723175458684,-285.547649,0.00024285,5]
[334536983,1723175458693,-285.547649,0.00024285,5]
[334536985,1723175458703,-285.547649,0.00024285,5]
[334536987,1723175458712,-150.0,0.00024286,2]
[334536989,1723175458722,-532.1945176,0.00024293,2]
[334536991,1723175458733,-150.0,0.00024296,2]
[334536993,1723175458742,-150.0,0.00024298,2]
[334536995,1723175458752,-3906.03,0.00024298,5]
[334536998,1723175458764,-916.08,0.00024298,5]
[334537000,1723175458773,-1152.29,0.00024298,5]
[334537002,1723175458784,-2653.59,0.00024298,5]
[334537004,1723175458795,-500.0,0.00024298,2]
[334537006,1723175458805,-1083.26,0.00024298,5]
[334537008,1723175458815,-2184.77,0.00024298,5]
[334537010,1723175458826,-500.0,0.00024298,5]
[334537012,1723175458837,-1031.56,0.00024298,5]
[334537014,1723175458850,-500.0,0.00024298,5]
[334537016,1723175458859,-654.93,0.00024298,5]
[334537018,1723175458869,-840.53,0.00024298,5]
[334537020,1723175458878,-1649.1,0.00024298,5]
[334537022,1723175458887,-1363.43,0.00024298,5]
[334537024,1723175458897,-500.0,0.00024298,5]
[334537027,1723175458909,-150.0,0.00024299,2]
[334537029,1723175458920,-1583.0,0.000243,2]
[334537031,1723175458932,-1256.0,0.000243,2]
[334537033,1723175458942,-590.127,0.000243,2]
[334537035,1723175458952,-1149.116,0.000243,2]
[334537037,1723175458965,-150.0,0.000243,2]
[334537039,1723175458975,-810.0,0.000243,2]
[334537041,1723175458983,-446.0,0.000243,2]
[334537043,1723175458993,-551.0,0.000243,2]
[334537045,1723175459002,-150.0,0.000243,2]
[334537047,1723175459010,-3290.0,0.000243,2]
[334537049,1723175459020,-1151.0,0.000243,2]
[334537051,1723175459029,-5839.0,0.000243,2]
[334537053,1723175459038,-159.282,0.000243,2]
[334537055,1723175459047,-289.0,0.000243,2]
[334537057,1723175459057,-190.924,0.000243,2]
[334537059,1723175459066,-5131.0,0.000243,2]
[334537061,1723175459075,-21747.0,0.000243,2]
[334537063,1723175459086,-151.477,0.000243,2]
[334537064,1723175459097,-1204.0,0.000243,2]
[334537067,1723175459107,-1672.0,0.000243,2]
[334537069,1723175459118,-261.231,0.000243,2]
[334537071,1723175459128,-186.842,0.000243,2]
[334537073,1723175459137,-161.728,0.000243,2]
[334537075,1723175459148,-150.0,0.00024308,2]
[334537077,1723175459158,-150.0,0.00024308,2]
[334537079,1723175459167,-150.0,0.00024308,2]
[334537081,1723175459176,-150.0,0.00024309,2]
[334537083,1723175459185,-150.0,0.00024312,2]
[334537085,1723175459194,-150.0,0.00024315,2]
[334537087,1723175459204,-150.0,0.00024316,2]
[334537088,1723175459213,-150.0,0.00024333,2]
[334537089,1723175459222,-150.0,0.00024334,2]
[334537090,1723175459232,-150.0,0.00024335,2]
[334537092,1723175459241,-150.0,0.00024337,2]
[334537094,1723175459250,-150.0,0.00024339,2]
[334537096,1723175459261,-150.0,0.00024343,2]
[334537098,1723175459271,-150.0,0.00024346,2]
[334537100,1723175459280,-532.1945176,0.00024347,2]
[334537102,1723175459289,-150.0,0.00024351,2]
[334537104,1723175459298,-150.0,0.00024351,2]
[334537106,1723175459308,-272.77,0.00024358,2]
[334537107,1723175459317,-150.0,0.0002436,2]
[334537109,1723175459326,-150.0,0.00024364,2]
[334537111,1723175459335,-150.0,0.00024364,2]
[334537113,1723175459345,-150.0,0.00024365,2]
[334537115,1723175459354,-150.0,0.00024366,2]
[334537117,1723175459363,-150.0,0.00024368,2]
[334537119,1723175459373,-150.0,0.00024372,2]
[334537121,1723175459383,-150.0,0.00024373,2]
[334537123,1723175459393,-150.0,0.00024376,2]
[334537125,1723175459403,-150.0,0.0002438,2]
[334537128,1723175459414,-150.0,0.00024386,2]
[334537130,1723175459424,-150.0,0.00024388,2]
[334537132,1723175459433,-150.0,0.0002439,2]
[334537134,1723175459445,-150.0,0.00024391,2]
[334537136,1723175459463,-150.0,0.00024393,2]
[334537138,1723175459473,-419.623131,0.00024393,5]
[334537140,1723175459483,-419.623131,0.00024393,5]
[334537142,1723175459493,-419.623131,0.00024393,5]
[334537144,1723175459502,-419.623131,0.00024393,5]
[334537146,1723175459512,-419.623131,0.00024393,5]
[334537148,1723175459521,-419.623131,0.00024393,5]
[334537150,1723175459532,-285.547649,0.00024393,5]
[334537152,1723175459543,-285.547649,0.00024393,5]
[334537154,1723175459553,-285.547649,0.00024393,5]
[334537156,1723175459563,-285.547649,0.00024393,5]
[334537158,1723175459572,-285.547649,0.00024393,5]
[334537160,1723175459582,-285.547649,0.00024393,5]
[334537162,1723175459592,-150.0,0.00024396,2]
[334537164,1723175459602,-150.0,0.00024399,2]
[334537166,1723175459612,-1196.0,0.00024399,2]
[334537168,1723175459622,-161.96163726,0.000244,2]
[334537170,1723175459632,-150.0,0.000244,2]
[334537172,1723175459642,-161.52313987,0.000244,2]
[334537174,1723175459653,-240.52847041,0.000244,2]
[334537176,1723175459663,-228.11116666,0.000244,2]
[334537178,1723175459673,-532.1945176,0.000244,2]
[334537180,1723175459684,-150.0,0.00024404,2]
[334537182,1723175459695,-150.0,0.00024404,2]
[334537184,1723175459706,-150.0,0.00024405,2]
[334537186,1723175459715,-150.0,0.00024407,2]
[334537188,1723175459725,-150.0,0.00024408,2]
[334537190,1723175459736,-150.0,0.00024409,2]
[334537193,1723175459746,-150.0,0.00024409,2]
[334537195,1723175459758,-150.0,0.00024414,2]
[334537197,1723175459770,-150.0,0.00024416,2]
[334537199,1723175459781,-150.0,0.00024419,2]
[334537201,1723175459792,-150.0,0.00024421,2]
[334537203,1723175459802,-150.0,0.00024429,2]
[334537205,1723175459813,-150.0,0.00024433,2]
[334537207,1723175459823,-150.0,0.00024433,2]
[334537209,1723175459834,-150.0,0.00024439,2]
[334537212,1723175459848,-150.0,0.00024439,2]
[334537214,1723175459857,-150.0,0.00024445,2]
[334537216,1723175459868,-150.0,0.00024447,2]
[334537218,1723175459878,-150.0,0.00024448,2]
[334537220,1723175459888,-150.0,0.00024455,2]
[334537222,1723175459897,-150.0,0.00024455,2]
[334537224,1723175459908,-150.0,0.00024458,2]
[334537226,1723175459918,-150.0,0.0002446,2]
[334537228,1723175459928,-150.0,0.0002446,2]
[334537230,1723175459938,-150.0,0.0002446,2]
[334537232,1723175459947,-150.0,0.00024463,2]
[334537233,1723175459960,-150.0,0.00024465,2]
[334537234,1723175459969,-200.0,0.00024473,2]
[334537235,1723175459979,-150.0,0.00024475,2]
[334537236,1723175459989,-150.0,0.00024477,2]
[334537237,1723175460000,-150.0,0.00024478,2]
[334537238,1723175460010,-150.0,0.00024478,2]
[334537239,1723175460022,-150.0,0.00024479,2]
[334537240,1723175460032,-150.0,0.0002448,2]
[334537241,1723175460043,-437.15800462,0.00024482,2]
[334537242,1723175460053,-150.0,0.00024482,2]
[334537243,1723175460063,-150.0,0.00024486,2]
[334537244,1723175460072,-150.0,0.00024487,2]
[334537245,1723175460082,-150.0,0.00024488,2]
[334537247,1723175460094,-3906.03,0.00024489,5]
[334537249,1723175460104,-916.08,0.00024489,5]
[334537251,1723175460114,-5001.09,0.00024489,5]
[334537253,1723175460123,-6759.34,0.00024489,5]
[334537255,1723175460132,-1152.29,0.00024489,5]
[334537257,1723175460142,-2653.59,0.00024489,5]
[334537259,1723175460151,-500.0,0.00024489,2]
[334537261,1723175460161,-1083.26,0.00024489,5]
[334537263,1723175460172,-2184.77,0.00024489,5]
[334537265,1723175460182,-500.0,0.00024489,5]
[334537267,1723175460193,-500.0,0.00024489,5]
[334537269,1723175460203,-1031.56,0.00024489,5]
[334537271,1723175460214,-500.0,0.00024489,5]
[334537273,1723175460224,-654.93,0.00024489,5]
[334537275,1723175460234,-840.53,0.00024489,5]
[334537277,1723175460244,-1649.1,0.00024489,5]
[334537279,1723175460254,-1363.43,0.00024489,5]
[334537281,1723175460263,-500.0,0.00024489,5]
[334537283,1723175460273,-1045.95,0.00024489,5]
[334537285,1723175460282,-78275.84238454,0.0002449,5]
[334537319,1723175460610,-400.0,0.00023315,2]
[334537321,1723175460621,-192.11783231,0.00023873,2]
[334537323,1723175460631,-1719.95,0.00024109,5]
[334537325,1723175460642,-1719.95,0.00024109,5]
[334537327,1723175460651,-1719.95,0.00024109,5]
[334537329,1723175460661,-493.50877118,0.00024109,5]
[334537331,1723175460672,-1719.95,0.00024109,5]
[334537333,1723175460682,-1719.95,0.00024109,5]
[334537335,1723175460692,-1719.95,0.00024109,5]
[334537337,1723175460704,-1719.95,0.00024109,5]
[334537339,1723175460714,-1719.95,0.00024109,5]
[334537341,1723175460723,-1719.95,0.00024298,5]
[334537343,1723175460735,-171724.15761546,0.0002449,5]
[334537345,1723175460745,-150.0,0.0002449,2]
[334537347,1723175460755,-5001.09,0.00024497,5]
[334537349,1723175460766,-500.0,0.00024497,5]
[334537351,1723175460776,-835.1552216,0.00024497,2]
[334537353,1723175460786,-2953.9477494,0.00024498,2]
[334537355,1723175460796,-150.01,0.00024498,2]
[334537357,1723175460806,-1091.04,0.00024498,5]
[334537359,1723175460816,-772.97,0.00024498,5]
[334537361,1723175460827,-500.0,0.00024498,5]
[334537363,1723175460838,-1159.07,0.00024498,5]
[334537365,1723175460850,-935.41,0.00024498,5]
[334537367,1723175460859,-3906.03,0.00024498,5]
[334537369,1723175460870,-3906.03,0.00024498,5]
[334537372,1723175460883,-3906.03,0.00024498,5]
[334537374,1723175460895,-916.08,0.00024498,5]
[334537376,1723175460906,-916.08,0.00024498,5]
[334537378,1723175460917,-916.08,0.00024498,5]
[334537380,1723175460927,-3093.82,0.00024498,5]
[334537382,1723175460937,-5001.09,0.00024498,5]
[334537384,1723175460947,-5001.09,0.00024498,5]
[334537386,1723175460958,-6759.34,0.00024498,5]
[334537388,1723175460969,-6759.34,0.00024498,5]
[334537390,1723175460979,-1152.29,0.00024498,5]
[334537392,1723175460989,-1152.29,0.00024498,5]
[334537394,1723175461000,-1152.29,0.00024498,5]
[334537396,1723175461010,-2653.59,0.00024498,5]
[334537398,1723175461020,-2653.59,0.00024498,5]
[334537400,1723175461031,-2653.59,0.00024498,5]
[334537402,1723175461041,-500.0,0.00024498,2]
[334537404,1723175461050,-500.0,0.00024498,2]
[334537406,1723175461060,-500.0,0.00024498,2]
[334537408,1723175461071,-1083.26,0.00024498,5]
[334537410,1723175461081,-1083.26,0.00024498,5]
[334537413,1723175461091,-1083.26,0.00024498,5]
[334537415,1723175461102,-500.0,0.00024498,5]
[334537417,1723175461112,-2184.77,0.00024498,5]
[334537419,1723175461122,-2184.77,0.00024498,5]
[334537421,1723175461134,-2184.77,0.00024498,5]
[334537423,1723175461144,-500.0,0.00024498,5]
[334537425,1723175461154,-500.0,0.00024498,5]
[334537427,1723175461164,-500.0,0.00024498,5]
[334537429,1723175461174,-500.0,0.00024498,5]
[334537431,1723175461185,-500.0,0.00024498,5]
[334537433,1723175461195,-500.79700095,0.00024498,5]
[334537435,1723175461206,-625.0,0.00024498,5]
[334537437,1723175461217,-500.79078669,0.00024498,5]
[334537439,1723175461227,-1031.56,0.00024498,5]
[334537442,1723175461237,-1031.56,0.00024498,5]
[334537444,1723175461247,-1031.56,0.00024498,5]
[334537446,1723175461257,-500.0,0.00024498,5]
[334537448,1723175461268,-187.71097186,0.00024498,5]
[334537450,1723175461278,-654.93,0.00024498,5]
[334537452,1723175461288,-654.93,0.00024498,5]
[334537454,1723175461298,-654.93,0.00024498,5]
[334537456,1723175461308,-840.53,0.00024498,5]
[334537458,1723175461319,-840.53,0.00024498,5]
[334537460,1723175461328,-840.53,0.00024498,5]
[334537462,1723175461338,-1649.1,0.00024498,5]
[334537464,1723175461349,-1649.1,0.00024498,5]
[334537466,1723175461358,-1649.1,0.00024498,5]
[334537468,1723175461368,-1363.43,0.00024498,5]
[334537470,1723175461378,-1363.43,0.00024498,5]
[334537472,1723175461390,-1363.43,0.00024498,5]
[334537474,1723175461401,-500.0,0.00024498,5]
[334537476,1723175461411,-500.0,0.00024498,5]
[334537478,1723175461421,-500.0,0.00024498,5]
[334537480,1723175461431,-1045.95,0.00024498,5]
[334537482,1723175461441,-1045.95,0.00024498,5]
[334537484,1723175461451,-1091.04,0.00024499,5]
[334537486,1723175461467,-1091.04,0.00024499,5]
[334537488,1723175461477,-1091.04,0.00024499,5]
[334537490,1723175461487,-1091.04,0.00024499,5]
[334537508,1723175461649,-1091.04,0.00024499,5]
[334537510,1723175461660,-1091.04,0.00024499,5]
[334537512,1723175461670,-1091.04,0.00024499,5]
[334537514,1723175461680,-1091.04,0.00024499,5]
[334537516,1723175461691,-1091.04,0.00024499,5]
[334537519,1723175461701,-1091.04,0.00024499,5]
[334537520,1723175461711,-1091.04,0.00024499,5]
[334537522,1723175461720,-1091.04,0.00024499,5]
[334537524,1723175461730,-1091.13,0.00024499,5]
[334537527,1723175461741,-772.97,0.00024499,5]
[334537528,1723175461750,-772.97,0.00024499,5]
[334537530,1723175461761,-772.97,0.00024499,5]
[334537532,1723175461771,-772.97,0.00024499,5]
[334537534,1723175461781,-772.97,0.00024499,5]
[334537536,1723175461790,-772.97,0.00024499,5]
[334537538,1723175461800,-772.97,0.00024499,5]
[334537540,1723175461810,-772.97,0.00024499,5]
[334537542,1723175461820,-772.97,0.00024499,5]
[334537544,1723175461829,-772.97,0.00024499,5]
[334537546,1723175461841,-772.97,0.00024499,5]
[334537548,1723175461851,-772.97,0.00024499,5]
[334537550,1723175461860,-773.09,0.00024499,5]
[334537552,1723175461870,-500.0,0.00024499,5]
[334537554,1723175461881,-500.0,0.00024499,5]
[334537556,1723175461893,-500.0,0.00024499,5]
[334537558,1723175461903,-500.0,0.00024499,5]
[334537560,1723175461912,-601.52,0.00024499,5]
[334537562,1723175461924,-1006.48808302,0.00024499,5]
[334537564,1723175461943,-155.0,0.00019398,2]
[334537566,1723175461952,-152.58191698,0.00024499,5]
[334537568,1723175461962,-618.54603477,0.00024499,5]
[334537571,1723175461974,-540.52396523,0.00024499,5]
[334537573,1723175461984,-1159.07,0.00024499,5]
[334537575,1723175461994,-1159.07,0.00024499,5]
[334537577,1723175462003,-1159.07,0.00024499,5]
[334537579,1723175462013,-1159.07,0.00024499,5]
[334537580,1723175462022,-1159.07,0.00024499,5]
[334537582,1723175462031,-293.75563478,0.00024499,5]
[334537584,1723175462043,-319.0,0.00024499,5]
[334537587,1723175462054,-546.31436522,0.00024499,5]
[334537589,1723175462063,-77.55361545,0.00024499,5]
[334537592,1723175462083,-1064.73000001,0.00024489,5]
[334537594,1723175462094,-655.21999999,0.00024489,5]
[334537596,1723175462103,-1081.51638455,0.00024499,5]
[334537598,1723175462113,-1159.07,0.00024499,5]
[334537600,1723175462122,-1159.07,0.00024499,5]
[334537602,1723175462131,-1159.07,0.00024499,5]
[334537603,1723175462140,-1159.1508275,0.00024499,5]
[334537605,1723175462150,-935.41,0.00024499,5]
[334537607,1723175462159,-935.41,0.00024499,5]
[334537609,1723175462169,-142.07463246,0.00024499,5]
[334538274,1723175469446,35632.0,0.00025,60]
[334538562,1723176339269,315.01589673,0.00024999,60]
[334538614,1723176631951,-300.0,0.00012498,2]
[334538615,1723176631961,-420.0,0.00013748,2]
[334538616,1723176631970,-154.42,0.00013973,2]
[334538617,1723176631979,-6869.8597058,0.00015999,2]
[334538618,1723176632113,-327.39805379,0.00015999,2]
[334538619,1723176632124,-879.21718574,0.00015999,2]
[334538620,1723176632136,-6402.62715218,0.00015999,2]
[334538621,1723176632147,-481.13236969,0.00015999,2]
[334538655,1723176638173,-4852.58394786,0.00015999,2]
[334538656,1723176638231,-10968.22023677,0.00015999,2]
[334538657,1723176638241,-306.72174365,0.00019451,2]
[334538658,1723176638251,-370.496253,0.00019599,2]
[334538659,1723176638261,-370.496253,0.00019599,2]
[334538660,1723176638270,-438.81068454,0.00019599,2]
[334538661,1723176638279,-499.99,0.00019726,2]
[334538662,1723176638291,-500.0,0.00020191,2]
[334538663,1723176638301,-700.0,0.0002037,2]
[334538664,1723176638311,-299.99,0.00020381,7]
[334538665,1723176638320,-990.2,0.0002044,2]
[334538666,1723176638331,-530.9531837,0.00020831,2]
[334538667,1723176638342,-414.72232741,0.00020899,2]
[334538668,1723176638351,-5266.6,0.00022127,2]
[334538669,1723176638361,-1000.0,0.00022132,2]
[334538670,1723176638371,-173.6,0.00022298,2]
[334538671,1723176638380,-250.0,0.00022304,2]
[334538672,1723176638390,-1901.50393263,0.00022481,4]
[334538673,1723176638402,-163.66,0.00022514,2]
[334538675,1723176638411,-250.0,0.00022555,2]
[334538677,1723176638420,-23900.0,0.0002263,2]
[334538679,1723176638430,-1238.08,0.00022642,2]
[334538680,1723176638439,-2561.91,0.00022695,2]
[334538681,1723176638448,-990.2,0.00022704,2]
[334538682,1723176638458,-171.29,0.00022842,2]
[334538683,1723176638467,-1901.50393264,0.00022867,4]
[334538684,1723176638476,-170.58,0.00023373,2]
[334538685,1723176638485,-159.48,0.0002338,2]
[334538686,1723176638495,-546.63032858,0.00023451,2]
[334538687,1723176638504,-19.09622085,0.00023451,2]
[334538688,1723176638516,-307.055,0.00023451,2]
[334538689,1723176638528,-431.31837013,0.00023451,2]
[334538690,1723176638538,-243.23162987,0.00023873,2]
[334538691,1723176638551,-601.51186436,0.00023873,2]
[334538692,1723176638561,-3500.51760241,0.00024,5]
[334538693,1723176638572,-865.69,0.00024,5]
[334538832,1723176640032,-490.39151482,0.00019599,2]
[334538854,1723176640712,-236.01930971,0.00019599,2]
[334538855,1723176640721,-196.51253629,0.00024,5]
[334538856,1723176641121,-8255.07317436,0.00024,5]
[334538858,1723176641131,-343.987401,0.00024109,5]
[334538860,1723176641141,-343.987401,0.00024109,5]
[334538861,1723176641158,-343.987401,0.00024109,5]
[334538862,1723176641167,-343.987401,0.00024109,5]
[334538863,1723176641177,-343.987401,0.00024109,5]
[334538864,1723176641186,-343.987401,0.00024109,5]
[334538865,1723176641195,-343.987401,0.00024109,5]
[334538866,1723176641205,-343.987401,0.00024109,5]
[334538867,1723176641215,-343.987401,0.00024109,5]
[334538868,1723176641224,-343.987401,0.00024109,5]
[334538869,1723176641238,-500.0,0.00024109,5]
[334538870,1723176641247,-500.0,0.00024109,5]
[334538871,1723176641257,-500.0,0.00024109,5]
[334538872,1723176641267,-500.0,0.00024109,5]
[334538873,1723176641276,-500.0,0.00024109,5]
[334538874,1723176641285,-314.35,0.00024109,5]
[334538875,1723176641294,-500.0,0.00024109,5]
[334538876,1723176641305,-586.81453691,0.00024109,5]
[334538878,1723176641315,-834.23,0.00024109,5]
[334538880,1723176641324,-834.23,0.00024109,5]
[334538882,1723176641333,-834.23,0.00024109,5]
[334538884,1723176641343,-834.23,0.00024109,5]
[334538886,1723176641352,-834.23,0.00024109,5]
[334538888,1723176641361,-834.23,0.00024109,5]
[334538890,1723176641372,-834.23,0.00024109,5]
[334538892,1723176641382,-834.23,0.00024109,5]
[334538894,1723176641394,-834.23,0.00024109,5]
[334538896,1723176641403,-834.23,0.00024109,5]
[334538898,1723176641413,-186.099097,0.00024109,5]
[334538900,1723176641422,-1405.57261627,0.00024123,2]
[334538902,1723176641432,-155.0,0.00024124,2]
[334538904,1723176641441,-155.30044542,0.00024124,2]
[334538906,1723176641451,-285.78078625,0.00024124,2]
[334538908,1723176641462,-390.16,0.00024164,3]
[334538910,1723176641471,-492.80514019,0.00024174,2]
[334538912,1723176641483,-1058.06846759,0.00024174,2]
[334538914,1723176641494,-278.00355478,0.00024174,2]
[334538916,1723176641504,-790.57634713,0.00024174,2]
[334539078,1723176643011,-8719.15030239,0.00024174,2]
[334539085,1723176643068,-558.1784535,0.00024174,2]
[334539118,1723176643389,-8103.20773442,0.00024174,2]
[334539120,1723176643402,-6275.56,0.00024174,2]
[334539123,1723176643418,-29999.99,0.00024174,2]
[334539125,1723176643432,-19165.33,0.00024174,2]
[334539127,1723176643442,-2041.8925,0.0002418,2]
[334539129,1723176643452,-150.0,0.00024247,2]
[334539131,1723176643462,-150.0,0.00024247,2]
[334539133,1723176643471,-150.0,0.0002425,2]
[334539135,1723176643481,-3000.0,0.0002425,2]
[334539137,1723176643491,-150.0,0.0002426,2]
[334539139,1723176643501,-150.0,0.00024263,2]
[334539142,1723176643511,-150.0,0.00024271,2]
[334539145,1723176643520,-293.90538113,0.00024274,2]
[334539147,1723176643530,-150.0,0.00024281,2]
[334539149,1723176643539,-343.987401,0.00024283,5]
[334539151,1723176643549,-343.987401,0.00024283,5]
[334539153,1723176643559,-343.987401,0.00024284,5]
[334539155,1723176643569,-343.987401,0.00024284,5]
[334539157,1723176643579,-343.987401,0.00024284,5]
[334539159,1723176643588,-343.987401,0.00024285,5]
[334539161,1723176643598,-343.987401,0.00024285,5]
[334539163,1723176643607,-343.987401,0.00024285,5]
[334539165,1723176643617,-343.987401,0.00024285,5]
[334539167,1723176643627,-150.0,0.00024292,2]
[334539169,1723176643636,-1000.0,0.00024298,2]
[334539171,1723176643647,-2500.0,0.00024298,2]
[334539173,1723176643657,-2083.79,0.00024299,5]
[334539175,1723176643666,-500.0,0.00024299,5]
[334539177,1723176643675,-500.0,0.00024299,5]
[334539179,1723176643685,-150.885,0.000243,2]
[334539181,1723176643694,-710.269,0.000243,2]
[334539183,1723176643703,-555.0,0.000243,2]
[334539185,1723176643712,-446.0,0.000243,2]
[334539187,1723176643721,-810.0,0.000243,2]
[334539188,1723176643730,-551.0,0.000243,2]
[334539190,1723176643740,-1151.0,0.000243,2]
[334539192,1723176643750,-2704.553,0.000243,2]
[334539194,1723176643760,-1672.0,0.000243,2]
[334539196,1723176643769,-5131.0,0.000243,2]
[334539198,1723176643778,-11757.58590077,0.000243,2]
[334539378,1723176646246,-9989.41409923,0.000243,2]
[334539379,1723176646256,-5839.0,0.000243,2]
[334539380,1723176646266,-1204.0,0.000243,2]
[334539381,1723176646278,-150.0,0.00024308,2]
[334539382,1723176646288,-150.0,0.00024328,2]
[334539383,1723176646297,-150.0,0.00024347,2]
[334539384,1723176646308,-150.0,0.00024355,2]
[334539385,1723176646318,-150.0,0.00024365,2]
[334539386,1723176646328,-150.0,0.0002437,2]
[334539387,1723176646337,-150.0,0.00024374,2]
[334539388,1723176646346,-150.0,0.00024374,2]
[334539389,1723176646355,-150.0,0.0002438,2]
[334539390,1723176646364,-343.987401,0.00024393,5]
[334539391,1723176646374,-343.987401,0.00024393,5]
[334539392,1723176646383,-343.987401,0.00024393,5]
[334539393,1723176646392,-343.987401,0.00024393,5]
[334539394,1723176646402,-343.987401,0.00024393,5]
[334539395,1723176646412,-343.987401,0.00024393,5]
[334539396,1723176646423,-500.0,0.00024398,2]
[334539397,1723176646433,-500.0,0.00024398,2]
[334539398,1723176646442,-459.06433627,0.00024398,2]
[334539399,1723176646452,-162.11825958,0.00024398,2]
[334539400,1723176646461,-397.14083081,0.00024398,5]
[334539401,1723176646471,-150.0,0.00024398,2]
[334539402,1723176646480,-1627.51,0.00024398,5]
[334539403,1723176646490,-500.0,0.00024398,5]
[334539404,1723176646499,-500.0,0.00024398,5]
[334539405,1723176646509,-500.0,0.00024398,2]
[334539406,1723176646519,-500.0,0.00024398,5]
[334539407,1723176646528,-1105.67,0.00024398,5]
[334539408,1723176646537,-910.33,0.00024398,5]
[334539409,1723176646546,-500.0,0.00024398,5]
[334539410,1723176646556,-500.0,0.00024398,5]
[334539411,1723176646565,-500.0,0.00024398,5]
[334539412,1723176646574,-500.0,0.00024398,5]
[334539413,1723176646584,-687.13,0.00024398,5]
[334539414,1723176646593,-500.0,0.00024398,5]
[334539415,1723176646602,-500.0,0.00024398,5]
[334539416,1723176646611,-931.64,0.00024398,5]
[334539417,1723176646621,-568.1,0.00024398,5]
[334539418,1723176646631,-1675.82,0.00024398,5]
[334539419,1723176646640,-500.0,0.00024398,5]
[334539420,1723176646652,-500.0,0.00024398,5]
[334539421,1723176646662,-2083.79,0.00024398,5]
[334539422,1723176646671,-417.0502174,0.00024398,5]
[334539423,1723176646682,-3098.03,0.00024398,5]
[334539424,1723176646691,-500.0,0.00024398,5]
[334539425,1723176646701,-500.0,0.00024398,5]
[334539426,1723176646711,-500.0,0.00024398,5]
[334539427,1723176646720,-492.133,0.00024398,2]
[334539428,1723176646730,-18193.15981654,0.00024399,2]
[334539429,1723176646742,-9214.26318376,0.00024399,2]
[334539430,1723176646754,-7215.18667474,0.00024399,2]
[334539431,1723176646765,-422.91126348,0.00024399,2]
[334539448,1723176984867,358.0,0.00025,60]
[334539452,1723177508548,1274602.0,0.00011,2]
[334539453,1723177508574,234193.1319789,0.00011,2]
[334539454,1723177567271,760.2567842,0.00011,2]
[334539456,1723177588827,7226.18825408,0.00011,2]
[334539457,1723177589308,12738.80619275,0.00011,2]
[334539459,1723177603771,791.2712931,0.00011,2]
[334539461,1723177614227,871.75845966,0.00011,2]
[334539462,1723177672100,735.39406832,0.00011,2]
[334539475,1723177682114,211.54523635,0.0001,2]
[334539495,1723177832139,-345.5,0.00013,2]